bitfinex/quotes_ETHUSD_20251011
["timestamp","ask_amount","ask_price","bid_price","bid_amount"]
[1760149807841,0.001,3823.7,3818.0,0.6336]
[1760149808037,0.001,3823.7,3818.5,2.45541815]
[1760149808259,0.001,3823.7,3818.7,2.5536]
[1760149808472,0.001,3823.7,3817.9,4.17528003]
[1760149808473,0.001,3823.7,3819.0,2.61848651]
[1760149808657,0.001,3823.7,3819.7,0.6336]
[1760149809147,0.001,3823.7,3819.4,0.6336]
[1760149809343,0.001,3823.7,3819.5,2.5536]
[1760149809682,0.001,3823.7,3819.9,0.6336]
[1760149809983,0.001,3823.7,3819.8,0.6336]
[1760149810349,0.001,3823.7,3818.9,1.27253113]
[1760149810666,0.001,3823.7,3819.0,0.63899562]
[1760149810865,0.001,3823.7,3818.9,1.27253113]
[1760149811955,0.6336,3823.5,3817.3,1.82181815]
[1760149812276,0.02613481,3823.4,3816.8,1.82181815]
[1760149812484,0.6336,3823.3,3816.6,1.82381815]
[1760149812681,0.6336,3823.3,3816.6,0.002]
[1760149812854,0.02613481,3823.2,3816.6,0.002]
[1760149813049,0.6336,3823.3,3817.9,0.0261924]
[1760149813252,1.36096733,3823.4,3817.9,0.0261924]
[1760149813563,0.1304,3817.9,3817.8,1.2692]
[1760149813761,1.30251595,3823.6,3817.9,0.6336]
[1760149814157,1.30251595,3823.6,3817.8,0.6356]
[1760149814910,0.001,3823.7,3817.9,0.6336]
[1760149815413,0.001,3823.7,3817.9,4.37541815]
[1760149815618,0.001,3823.7,3817.9,0.6336]
[1760149815914,0.001,3823.7,3818.1,0.6336]
[1760149816288,0.001,3823.7,3818.3,1.82181815]
[1760149816487,0.001,3823.7,3818.4,0.6336]
[1760149816689,0.001,3823.7,3818.1,2.45541815]
[1760149816883,0.001,3823.7,3818.3,0.6336]
[1760149817518,0.001,3823.7,3818.2,0.6336]
[1760149817818,0.001,3823.7,3818.9,0.6336]
[1760149818022,0.001,3823.7,3819.1,0.6336]
[1760149818321,0.001,3823.7,3819.7,0.6336]
[1760149818492,0.001,3823.7,3820.2,2.5536]
[1760149818693,0.001,3823.7,3820.2,0.6336]
[1760149819017,0.001,3823.7,3820.4,0.6336]
[1760149820590,0.001,3823.7,3820.3,0.10509072]
[1760149820791,0.001,3823.7,3819.0,1.27253113]
[1760149821116,0.001,3823.7,3819.1,0.73872138]
[1760149822098,0.001,3823.7,3819.1,0.10512138]
[1760149822300,0.001,3823.7,3819.2,0.02447161]
[1760149822515,0.001,3823.7,3819.2,0.6336]
[1760149823530,0.001,3823.7,3819.1,0.73872138]
[1760149823531,0.001,3823.7,3819.1,0.10512138]
[1760149824433,0.001,3823.7,3819.2,0.6336]
[1760149824805,0.001,3823.7,3819.3,0.6336]
[1760149825034,0.001,3823.7,3819.4,0.6336]
[1760149825255,0.001,3823.7,3820.0,0.6336]
[1760149825607,0.001,3823.7,3819.9,0.6336]
[1760149826031,0.001,3823.7,3820.1,0.6336]
[1760149826212,0.001,3823.7,3820.1,2.5536]
[1760149826407,0.001,3823.7,3820.0,0.6336]
[1760149826815,0.001,3823.7,3819.9,0.6336]
[1760149827011,0.001,3824.1,3823.7,0.668368]
[1760149831749,0.02713481,3824.1,3823.7,0.668368]
[1760149831940,0.001,3824.1,3823.7,0.668368]
[1760149834353,0.001,3824.1,3819.0,1.27253113]
[1760149834656,0.001,3824.1,3819.9,0.10513657]
[1760149834857,0.02713481,3824.1,3820.0,0.23680226]
[1760149835243,0.001,3824.1,3820.1,0.02617732]
[1760149835438,0.001,3824.1,3820.2,0.23698208]
[1760149835740,0.1372244,3824.0,3820.3,0.65977594]
[1760149835965,0.1372244,3824.0,3820.5,0.6336]
[1760149836275,0.1372244,3824.0,3819.7,0.78852641]
[1760149836276,0.1372244,3824.0,3820.7,0.6336]
[1760149836440,0.1372244,3824.0,3820.9,0.6336]
[1760149836641,0.1372244,3824.0,3821.1,0.6336]
[1760149836875,0.1372244,3824.0,3821.3,0.6336]
[1760149837171,0.1372244,3824.0,3821.5,0.6336]
[1760149837381,0.1372244,3824.0,3821.7,0.6336]
[1760149837590,0.1372244,3824.0,3821.9,0.6336]
[1760149837767,0.1372244,3824.0,3822.1,0.6336]
[1760149837965,0.1372244,3824.0,3822.3,0.6336]
[1760149838284,0.1372244,3824.0,3822.5,0.6336]
[1760149838473,0.1372244,3824.0,3822.7,0.6336]
[1760149838654,0.1382244,3824.0,3822.9,0.6336]
[1760149838859,0.1382244,3824.0,3821.7,1.92]
[1760149838860,0.1382244,3824.0,3823.1,0.6336]
[1760149839160,0.1382244,3824.0,3823.3,0.6336]
[1760149839361,0.1382244,3824.0,3823.5,0.6336]
[1760149839581,0.1382244,3824.0,3821.3,0.1372244]
[1760149839785,0.1382244,3824.0,3821.4,0.47255953]
[1760149839979,0.1382244,3824.0,3821.5,0.47255953]
[1760149840177,0.1382244,3824.0,3821.6,0.47255953]
[1760149840460,0.1382244,3824.0,3821.7,0.47255953]
[1760149840678,0.1382244,3824.0,3821.8,0.47255953]
[1760149840877,0.1382244,3824.0,3821.9,0.47255953]
[1760149841177,0.1382244,3824.0,3821.3,0.1372244]
[1760149841178,0.1382244,3824.0,3822.0,0.47255953]
[1760149841376,0.1382244,3824.0,3822.1,0.47255953]
[1760149841577,0.1382244,3824.0,3822.2,0.2443068]
[1760149841885,0.1382244,3824.0,3821.3,0.1372244]
[1760149842092,0.1382244,3824.0,3821.4,0.23634669]
[1760149842286,0.1382244,3824.0,3819.9,0.6336]
[1760149842480,0.1382244,3824.0,3820.0,0.47314563]
[1760149842686,0.1382244,3824.0,3820.1,0.47314563]
[1760149842859,0.1382244,3824.0,3820.3,0.6336]
[1760149843059,0.1382244,3824.0,3820.5,0.6336]
[1760149843277,0.1382244,3824.0,3819.8,0.1382244]
[1760149843278,0.1382244,3824.0,3820.7,0.6336]
[1760149843461,0.1382244,3824.0,3820.9,0.6336]
[1760149843683,0.1382244,3824.0,3821.1,0.6336]
[1760149843867,0.1382244,3824.0,3821.2,0.23655251]
[1760149844074,0.02613481,3823.9,3819.8,0.1382244]
[1760149844272,0.02613481,3823.9,3819.9,0.47370669]
[1760149844473,0.1382244,3824.0,3820.0,0.47370669]
[1760149844670,0.1382244,3824.0,3819.1,0.1446244]
[1760149844671,1.35935917,3823.8,3819.1,0.1446244]
[1760149844870,0.68383481,3823.9,3817.8,0.002]
[1760149844871,1.30251595,3823.6,3819.2,0.02618349]
[1760149845072,0.6577,3823.9,3819.3,0.24105645]
[1760149845073,0.02613481,3823.5,3819.3,0.24105645]
[1760149845279,0.02613481,3823.5,3819.4,0.23705645]
[1760149845475,0.02613481,3823.5,3817.9,0.002]
[1760149845793,0.1382244,3824.0,3819.4,0.6336]
[1760149846187,0.1382244,3824.0,3819.4,2.5536]
[1760149846391,0.1382244,3824.0,3819.4,0.6336]
[1760149846592,0.1382244,3824.0,3819.5,0.00473783]
[1760149846791,0.1382244,3824.0,3819.4,0.6336]
[1760149848392,0.1382244,3824.0,3819.9,0.6336]
[1760149848593,0.1382244,3824.0,3819.7,1.92]
[1760149848912,0.1382244,3824.0,3820.4,0.6336]
[1760149849193,0.1382244,3824.0,3820.6,2.5536]
[1760149849360,0.1382244,3824.0,3820.6,0.6336]
[1760149849762,0.1382244,3824.0,3820.7,1.82181815]
[1760149849965,0.1382244,3824.0,3821.0,5.17069727]
[1760149850166,0.1382244,3824.0,3820.8,2.5536]
[1760149850493,0.1382244,3824.0,3821.2,2.61697895]
[1760149850694,0.1382244,3824.0,3821.3,0.6336]
[1760149850883,0.1382244,3824.0,3820.9,0.6336]
[1760149851267,0.1382244,3824.0,3821.2,0.6336]
[1760149851596,0.1382244,3824.0,3821.0,0.6336]
[1760149851786,0.1382244,3824.0,3821.0,2.5536]
[1760149851973,0.1382244,3824.0,3821.1,0.65977047]
[1760149852178,0.1382244,3824.0,3821.5,0.6336]
[1760149852386,0.1382244,3824.0,3821.6,0.65976705]
[1760149852785,0.1382244,3824.0,3821.6,0.02616705]
[1760149853190,0.1382244,3824.0,3822.5,0.6336]
[1760149853785,0.1382244,3824.0,3822.7,0.6336]
[1760149853980,0.1382244,3824.0,3822.9,0.6336]
[1760149854202,0.1382244,3824.0,3823.1,0.6336]
[1760149854407,0.1382244,3824.0,3823.3,0.6336]
[1760149854580,0.1382244,3824.0,3823.4,0.02615473]
[1760149854780,0.1382244,3824.0,3822.0,0.6336]
[1760149854986,0.1382244,3824.0,3822.6,0.6336]
[1760149855193,0.1382244,3824.0,3822.8,0.6336]
[1760149855393,0.1382244,3824.0,3823.0,0.6336]
[1760149855593,0.1382244,3824.0,3823.2,0.6336]
[1760149855901,0.1382244,3824.0,3823.4,0.6336]
[1760149856108,0.1382244,3824.0,3822.5,0.6336]
[1760149856274,0.1382244,3824.0,3822.7,0.6336]
[1760149856475,0.1382244,3824.0,3822.9,0.6336]
[1760149856704,0.1382244,3824.0,3823.1,0.6336]
[1760149856895,0.1382244,3824.0,3823.3,0.6336]
[1760149857299,0.1382244,3824.0,3821.6,0.002]
[1760149857300,0.1382244,3824.0,3821.9,0.6336]
[1760149857501,0.1382244,3824.0,3822.1,0.6336]
[1760149857696,0.1382244,3824.0,3822.3,0.6336]
[1760149858004,0.1382244,3824.0,3822.5,0.6336]
[1760149858306,0.1382244,3824.0,3822.7,0.6336]
[1760149858506,0.1382244,3824.0,3821.6,0.002]
[1760149860011,0.1382244,3824.0,3821.6,0.6356]
[1760149860211,0.1382244,3824.0,3821.8,0.6336]
[1760149860411,0.1382244,3824.0,3822.0,0.6336]
[1760149860725,0.1382244,3824.0,3822.2,0.6336]
[1760149860880,0.1382244,3824.0,3821.6,0.002]
[1760149861819,0.1382244,3824.0,3821.7,0.02616636]
[1760149861986,0.1382244,3824.0,3821.6,0.002]
[1760149862179,0.1382244,3824.0,3821.7,0.02616636]
[1760149862380,0.1382244,3824.0,3821.6,0.002]
[1760149862586,0.1382244,3824.0,3821.7,0.02483164]
[1760149862983,0.1382244,3824.0,3821.6,0.002]
[1760149863488,0.1382244,3824.0,3821.7,0.02616636]
[1760149863687,0.1382244,3824.0,3821.7,0.65976636]
[1760149864117,0.1382244,3824.0,3821.7,0.6336]
[1760149864291,0.1382244,3824.0,3821.6,0.002]
[1760149864487,0.02613481,3823.9,3821.6,0.002]
[1760149864704,0.1382244,3824.0,3821.6,0.002]
[1760149865111,0.1382244,3824.0,3821.7,0.02616635]
[1760149865308,0.1382244,3824.0,3821.6,0.002]
[1760149865895,0.1382244,3824.0,3821.6,0.6356]
[1760149866215,0.1382244,3824.0,3821.8,0.6336]
[1760149866517,0.1382244,3824.0,3822.0,0.6336]
[1760149866717,0.1382244,3824.0,3821.6,0.002]
[1760149866718,0.1382244,3824.0,3822.2,0.6336]
[1760149867095,0.1382244,3824.0,3821.6,0.002]
[1760149867096,0.1382244,3824.0,3822.3,0.02616225]
[1760149867296,0.1382244,3824.0,3821.6,0.002]
[1760149867824,0.1382244,3824.0,3821.7,0.02616636]
[1760149868023,0.1382244,3824.0,3821.6,0.002]
[1760149869030,0.02613481,3823.9,3821.6,0.002]
[1760149869218,0.1382244,3824.0,3821.6,0.002]
[1760149869428,0.1382244,3824.0,3821.7,0.65976635]
[1760149869891,0.1382244,3824.0,3821.9,0.6336]
[1760149870096,0.1382244,3824.0,3822.1,0.6336]
[1760149870292,0.1382244,3824.0,3822.3,0.6336]
[1760149870518,0.1382244,3824.0,3821.6,0.002]
[1760149870722,0.1304,3822.2,3821.8,0.6336]
[1760149870925,0.1382244,3824.0,3822.0,0.6336]
[1760149871246,0.1382244,3824.0,3821.6,0.002]
[1760149871630,0.1382244,3824.0,3821.6,0.6356]
[1760149871828,0.1382244,3824.0,3821.7,0.23646858]
[1760149872034,0.1382244,3824.0,3821.8,0.6336]
[1760149872219,0.1382244,3824.0,3822.0,0.6336]
[1760149872607,0.1382244,3824.0,3822.2,0.6336]
[1760149872928,0.1382244,3824.0,3822.4,0.6336]
[1760149873099,0.1382244,3824.0,3822.6,0.6336]
[1760149873299,0.1382244,3824.0,3821.6,0.002]
[1760149873526,0.1304,3822.5,3821.8,0.6336]
[1760149873697,0.1382244,3824.0,3822.0,0.6336]
[1760149873901,0.1382244,3824.0,3822.2,0.6336]
[1760149874097,0.1382244,3824.0,3822.4,0.6336]
[1760149874304,0.1382244,3824.0,3822.6,0.6336]
[1760149874544,0.1382244,3824.0,3822.8,0.6336]
[1760149874700,0.1382244,3824.0,3823.0,0.6336]
[1760149874906,0.1382244,3824.0,3823.2,0.6336]
[1760149875321,0.1382244,3824.0,3821.6,0.002]
[1760149875522,0.1382244,3824.0,3821.8,0.6336]
[1760149875749,0.1382244,3824.0,3822.0,0.6336]
[1760149875956,0.1382244,3824.0,3822.2,0.6336]
[1760149876253,0.1382244,3824.0,3822.4,0.6336]
[1760149876443,0.1382244,3824.0,3822.6,0.6336]
[1760149876634,0.1382244,3824.0,3822.8,0.6336]
[1760149877148,0.1382244,3824.0,3821.6,0.002]
[1760149877350,0.0056564,3824.0,3821.8,0.6336]
[1760149877656,0.0056564,3824.0,3822.0,0.6336]
[1760149877863,0.0056564,3824.0,3822.2,0.6336]
[1760149878046,0.0056564,3824.0,3822.4,0.6336]
[1760149878362,0.0056564,3824.0,3822.3,0.23652452]
[1760149878363,0.0056564,3824.0,3822.6,0.6336]
[1760149878524,0.0056564,3824.0,3822.8,0.6336]
[1760149878926,0.0056564,3824.0,3822.5,1.36965247]
[1760149879122,0.0056564,3824.0,3822.8,1.30572001]
[1760149879353,0.0056564,3824.0,3821.6,0.002]
[1760149879553,0.02613481,3823.9,3821.6,0.002]
[1760149879726,0.0056564,3824.0,3821.7,0.02616636]
[1760149879923,0.0056564,3824.0,3821.6,0.002]
[1760149879924,0.02613481,3823.9,3821.6,0.002]
[1760149880255,0.0056564,3824.0,3821.6,0.002]
[1760149880452,0.02613481,3823.9,3821.6,0.002]
[1760149880962,0.0056564,3824.0,3821.6,0.002]
[1760149881335,0.02613481,3823.9,3821.7,0.65976635]
[1760149881661,0.02613481,3823.9,3821.7,0.6336]
[1760149882253,0.0056564,3824.0,3821.7,0.6336]
[1760149882424,0.02613481,3823.9,3821.7,0.6336]
[1760149882834,0.0056564,3824.0,3821.7,0.6336]
[1760149883037,0.0056564,3824.0,3821.6,0.002]
[1760149884167,0.0056564,3824.0,3823.9,0.6336]
[1760149884536,0.0056564,3824.0,3821.6,0.002]
[1760149884973,0.0056564,3824.0,3821.8,0.6336]
[1760149885135,0.0056564,3824.0,3822.0,0.6336]
[1760149885337,0.0056564,3824.0,3821.6,0.002]
[1760149886040,0.02613481,3823.9,3821.6,0.002]
[1760149887968,0.65973481,3823.9,3821.6,0.002]
[1760149888164,0.02613481,3823.9,3821.6,0.002]
[1760149888466,0.0056564,3824.0,3821.6,0.002]
[1760149889755,0.0056564,3824.0,3821.8,0.6336]
[1760149889953,0.0056564,3824.0,3822.0,0.6336]
[1760149890257,0.0056564,3824.0,3821.6,0.002]
[1760149890642,0.0056564,3824.0,3821.6,0.6356]
[1760149890839,0.0056564,3824.0,3821.8,0.6336]
[1760149891043,0.0056564,3824.0,3822.0,0.6336]
[1760149891243,0.0056564,3824.0,3821.6,0.002]
[1760149891489,0.0056564,3824.0,3822.7,0.6336]
[1760149892036,0.0056564,3824.0,3821.6,0.002]
[1760149892289,0.0056564,3824.0,3821.8,0.6336]
[1760149892450,0.0056564,3824.0,3822.0,0.6336]
[1760149892859,0.0056564,3824.0,3822.8,0.6336]
[1760149893552,0.0056564,3824.0,3823.3,0.6336]
[1760149893753,0.0056564,3824.0,3821.6,0.002]
[1760149893972,0.0056564,3824.0,3823.6,0.6336]
[1760149894213,0.0056564,3824.0,3821.6,0.002]
[1760149894503,0.0056564,3824.0,3821.8,0.6336]
[1760149894702,0.0056564,3824.0,3821.9,0.2367183]
[1760149895002,0.0056564,3824.0,3822.0,0.2367183]
[1760149895178,0.0056564,3824.0,3821.6,0.002]
[1760149895381,0.0056564,3824.0,3821.8,0.6336]
[1760149895581,0.0056564,3824.0,3822.0,0.6336]
[1760149895782,0.0056564,3824.0,3822.2,0.6336]
[1760149895968,0.0056564,3824.0,3822.9,0.6336]
[1760149896309,0.0056564,3824.0,3823.4,0.6336]
[1760149896514,0.0056564,3824.0,3821.6,0.002]
[1760149896802,0.0056564,3824.0,3821.8,0.6336]
[1760149896966,0.0056564,3824.0,3822.0,0.6336]
[1760149897167,0.0056564,3824.0,3822.2,0.6336]
[1760149897369,0.0056564,3824.0,3822.4,0.6336]
[1760149897678,0.0056564,3824.0,3822.6,0.6336]
[1760149897874,0.0056564,3824.0,3823.9,0.6336]
[1760149898298,0.1304,3823.9,3822.7,0.00950081]
[1760149898479,0.0056564,3824.0,3822.9,0.6336]
[1760149898668,0.0056564,3824.0,3823.1,0.6336]
[1760149898865,0.0056564,3824.0,3823.3,0.6336]
[1760149899104,0.0056564,3824.0,3823.5,0.6336]
[1760149899275,0.0056564,3824.0,3823.7,0.6336]
[1760149899467,0.0056564,3824.0,3822.0,1.92]
[1760149899468,0.0056564,3824.0,3823.9,0.6336]
[1760149899665,0.0056564,3824.0,3823.9,0.86974337]
[1760149902707,0.001,3824.3,3823.9,0.86974337]
[1760149902889,0.001,3824.3,3824.1,0.6336]
[1760149903211,0.001,3824.3,3824.2,0.86974337]
[1760149903808,0.001,3824.3,3821.6,1.922]
[1760149904004,0.001,3824.3,3822.2,2.616292]
[1760149904185,0.001,3824.3,3822.3,0.23557458]
[1760149904521,0.001,3824.3,3822.4,0.23557458]
[1760149904716,0.001,3824.3,3822.5,0.23557458]
[1760149904924,0.001,3824.3,3822.6,0.23557458]
[1760149905214,0.001,3824.3,3822.7,0.23557458]
[1760149905514,0.001,3824.3,3822.8,0.23557458]
[1760149905700,0.001,3824.3,3821.6,0.002]
[1760149905701,0.001,3824.3,3822.9,0.23557458]
[1760149905902,0.001,3824.3,3823.0,0.23557458]
[1760149906111,0.001,3824.3,3823.1,0.23557458]
[1760149906309,0.001,3824.3,3823.3,0.6336]
[1760149906613,0.001,3824.3,3823.5,0.6336]
[1760149906912,0.001,3824.3,3823.7,0.6336]
[1760149907117,0.001,3824.3,3823.9,0.6336]
[1760149907293,0.001,3824.3,3822.4,1.92]
[1760149907613,0.001,3824.3,3822.6,0.6336]
[1760149907815,0.001,3824.3,3822.8,0.6336]
[1760149908119,0.001,3824.3,3823.0,0.6336]
[1760149908415,0.001,3824.3,3823.2,0.6336]
[1760149908615,0.001,3824.3,3823.4,0.6336]
[1760149908780,0.001,3824.3,3823.6,0.6336]
[1760149908984,0.001,3824.3,3821.7,0.6336]
[1760149909185,0.001,3824.3,3822.0,2.61638587]
[1760149909385,0.001,3824.3,3822.7,0.6336]
[1760149909597,0.001,3824.3,3822.9,0.6336]
[1760149909792,0.001,3824.3,3823.1,0.6336]
[1760149910001,0.001,3824.3,3823.3,0.6336]
[1760149910324,0.001,3824.3,3823.5,0.6336]
[1760149910630,0.001,3824.3,3823.7,0.6336]
[1760149910827,0.001,3824.3,3822.6,0.002]
[1760149910828,0.001,3824.3,3823.9,0.6336]
[1760149910989,0.001,3824.3,3824.1,0.6336]
[1760149911191,0.001,3824.3,3824.2,0.86904584]
[1760149911898,0.001,3824.3,3824.2,0.6336]
[1760149914701,0.001,3824.3,3824.2,0.86916093]
[1760149915093,0.001,3824.3,3824.2,3.48408692]
[1760149915323,0.001,3824.3,3824.2,3.51023617]
[1760149915495,0.001,3824.3,3824.2,0.89531018]
[1760149916297,0.001,3824.3,3824.2,0.89538662]
[1760149916895,0.02613481,3830.1,3824.3,0.6336]
[1760149917124,0.4408,3831.9,3824.7,2.61458415]
[1760149917324,0.13700245,3828.2,3826.1,0.6336]
[1760149917524,0.02613481,3831.8,3826.3,0.6336]
[1760149917731,0.02613481,3831.8,3826.5,0.6336]
[1760149918042,0.13697625,3828.4,3826.7,0.6336]
[1760149918243,0.02613481,3831.8,3826.9,0.6336]
[1760149918443,0.13697792,3831.7,3827.1,0.6336]
[1760149918727,0.13697792,3831.7,3827.3,0.6336]
[1760149918906,0.13697792,3831.7,3827.5,0.6336]
[1760149919104,0.13697792,3831.7,3827.7,0.6336]
[1760149919306,0.13697792,3831.7,3827.8,0.02612465]
[1760149919906,0.13697792,3831.7,3828.0,0.6336]
[1760149920158,0.13697792,3831.7,3828.2,0.6336]
[1760149920311,0.13697792,3831.7,3826.5,0.6336]
[1760149920503,0.13697792,3831.7,3826.7,0.6336]
[1760149920697,0.13697792,3831.7,3826.9,0.6336]
[1760149920899,0.13697792,3831.7,3827.1,0.6336]
[1760149921208,0.13697792,3831.7,3828.3,0.6336]
[1760149921405,0.13697792,3831.7,3828.5,0.6336]
[1760149921605,0.13697792,3831.7,3828.7,0.6336]
[1760149921801,0.13697792,3831.7,3828.9,0.6336]
[1760149922034,0.13697792,3831.7,3829.1,0.6336]
[1760149922215,0.13697792,3831.7,3828.2,0.6336]
[1760149922398,0.1304,3829.0,3828.8,0.6336]
[1760149922602,0.13697792,3831.7,3829.0,0.6336]
[1760149922803,0.13697792,3831.7,3829.1,0.65971423]
[1760149923011,0.13697792,3831.7,3829.1,0.02611423]
[1760149923244,0.11161977,3836.0,3830.1,0.6336]
[1760149923534,0.13683001,3833.0,3830.1,0.6336]
[1760149923732,0.08548496,3836.0,3830.4,0.6336]
[1760149923902,0.13680997,3833.6,3831.2,3.24373444]
[1760149924236,0.08548496,3836.0,3830.0,0.28475464]
[1760149924535,0.13676157,3833.9,3831.3,0.6336]
[1760149924736,0.13676157,3833.9,3831.2,0.6336]
[1760149924904,0.08548496,3836.0,3831.2,0.6336]
[1760149925241,0.13678476,3833.8,3830.8,0.6336]
[1760149925534,0.08548496,3836.0,3830.5,0.6336]
[1760149926004,0.02613481,3835.9,3829.7,0.6336]
[1760149926409,0.08548496,3836.0,3829.7,0.6336]
[1760149926603,0.02613481,3835.9,3830.2,2.5536]
[1760149926818,0.02613481,3835.9,3830.3,0.02610395]
[1760149927041,0.02613481,3835.9,3830.4,0.02609138]
[1760149927202,0.08548496,3836.0,3830.4,2.63676332]
[1760149927402,0.08548496,3836.0,3830.6,2.5536]
[1760149927607,0.08548496,3836.0,3830.9,0.6336]
[1760149927828,0.08548496,3836.0,3830.9,2.5536]
[1760149928040,0.08548496,3836.0,3831.9,0.6336]
[1760149928238,0.08548496,3836.0,3832.5,2.60922771]
[1760149928407,0.001,3833.6,3832.6,2.5536]
[1760149928713,0.08548496,3836.0,3833.2,0.6336]
[1760149929046,0.001,3834.0,3831.3,0.6336]
[1760149929338,0.001,3834.0,3833.3,0.6336]
[1760149929546,0.001,3834.0,3833.6,0.6336]
[1760149929728,0.001,3834.0,3833.5,0.6336]
[1760149929933,0.001,3834.0,3833.6,0.02608514]
[1760149930103,0.001,3834.0,3833.6,0.6336]
[1760149930308,0.08548496,3836.0,3833.8,0.6336]
[1760149930510,0.08548496,3836.0,3832.1,0.67394111]
[1760149930511,0.08548496,3836.0,3833.1,0.6336]
[1760149930833,0.08548496,3836.0,3832.4,3.88180708]
[1760149930834,0.08548496,3836.0,3834.3,2.60803797]
[1760149931031,0.08548496,3836.0,3834.1,0.2625]
[1760149931220,0.08548496,3836.0,3834.7,1.92]
[1760149931434,0.08548496,3836.0,3834.8,0.02607697]
[1760149931635,0.08548496,3836.0,3835.9,3.24055012]
[1760149931952,0.2235,3843.3,3836.6,0.6336]
[1760149931953,0.02613481,3842.0,3836.6,0.6336]
[1760149932250,0.02613481,3842.0,3836.3,0.6336]
[1760149932450,0.02613481,3842.0,3835.7,1.27253113]
[1760149932653,1.37233695,3842.4,3835.8,0.6336]
[1760149932852,1.3852339,3842.0,3836.9,0.6336]
[1760149933160,1.3852339,3842.0,3836.0,1.92]
[1760149933161,0.02613481,3841.9,3836.0,1.92]
[1760149933344,0.02613481,3841.9,3836.8,0.6336]
[1760149933523,0.23828197,3839.4,3837.0,0.6336]
[1760149933729,0.23828197,3839.4,3836.8,0.6336]
[1760149933730,0.23828197,3839.4,3837.2,0.6336]
[1760149934024,0.23828197,3839.4,3836.4,0.6336]
[1760149934251,0.23828197,3839.4,3837.8,0.6336]
[1760149934752,0.23828197,3839.4,3837.2,0.6336]
[1760149934952,0.23828197,3839.4,3836.5,0.6336]
[1760149935358,0.23828197,3839.4,3838.3,0.6336]
[1760149935664,0.13654829,3839.3,3836.7,0.6336]
[1760149935971,0.13654829,3839.3,3837.9,0.6336]
[1760149936261,0.11537531,3839.3,3836.3,0.28475464]
[1760149936424,0.11537531,3839.3,3836.6,0.6336]
[1760149936631,0.11537531,3839.3,3837.9,0.6336]
[1760149936941,0.11537531,3839.3,3836.6,0.6336]
[1760149937128,0.11537531,3839.3,3836.3,0.2625]
[1760149937561,0.11537531,3839.3,3835.7,1.27253113]
[1760149937934,0.11537531,3839.3,3836.9,0.6336]
[1760149938326,0.11537531,3839.3,3837.3,0.6336]
[1760149938529,0.11537531,3839.3,3835.9,0.2625]
[1760149938766,0.11537531,3839.3,3837.2,0.6336]
[1760149938937,0.23828197,3839.4,3836.7,2.60640199]
[1760149939144,0.23828197,3839.4,3835.9,0.2625]
[1760149939340,0.23828197,3839.4,3835.7,1.27253113]
[1760149939545,0.23828197,3839.4,3835.9,2.60693534]
[1760149939546,0.13649391,3839.3,3835.9,2.60693534]
[1760149939760,0.13649391,3839.3,3835.7,1.27253113]
[1760149940432,0.13649391,3839.3,3831.6,0.99999999]
[1760149940629,0.13649391,3839.3,3833.4,2.60862762]
[1760149940869,0.13649391,3839.3,3831.8,0.23828197]
[1760149940870,0.13649391,3839.3,3833.9,2.60825491]
[1760149941181,0.13649391,3839.3,3832.8,2.6090245]
[1760149941335,0.13649391,3839.3,3832.8,0.57223504]
[1760149941534,0.13649391,3839.3,3834.0,2.6081955]
[1760149941769,0.13649391,3839.3,3832.5,2.60923033]
[1760149941942,0.02613481,3839.2,3833.4,2.60863509]
[1760149942135,0.02613481,3839.2,3832.4,2.60933096]
[1760149942461,0.02613481,3839.2,3832.1,0.2625]
[1760149942691,0.13649391,3839.3,3833.1,0.2625]
[1760149942965,0.13649391,3839.3,3833.7,2.5536]
[1760149943142,0.13649391,3839.3,3834.2,2.60809065]
[1760149943343,0.13649391,3839.3,3832.4,0.25157674]
[1760149943556,0.02613481,3839.2,3833.7,0.2625]
[1760149943737,0.02613481,3839.2,3833.8,2.60837501]
[1760149944067,0.13649391,3839.3,3835.1,0.2625]
[1760149944535,0.13649391,3839.3,3836.5,0.2625]
[1760149944740,0.13649391,3839.3,3837.0,0.8961]
[1760149945365,0.13649391,3839.3,3837.0,0.2625]
[1760149945741,0.13649391,3839.3,3834.0,2.60822818]
[1760149945742,0.1296,3837.0,3834.0,0.2625]
[1760149946068,0.13649391,3839.3,3834.3,0.2625]
[1760149946250,0.02613481,3839.2,3834.3,0.2625]
[1760149946455,0.13649391,3839.3,3834.4,2.60795464]
[1760149946658,0.13649391,3839.3,3834.3,0.2625]
[1760149946659,0.02613481,3839.2,3834.5,0.2625]
[1760149946865,0.13749391,3839.3,3834.5,0.2625]
[1760149947191,0.13749391,3839.3,3836.8,0.2625]
[1760149947486,0.13749391,3839.3,3834.5,2.60786393]
[1760149947649,0.13749391,3839.3,3834.6,0.8961]
[1760149947978,0.13749391,3839.3,3834.7,0.02607765]
[1760149948279,0.13749391,3839.3,3834.7,0.65967765]
[1760149948479,0.13749391,3839.3,3836.5,0.6336]
[1760149948677,0.13749391,3839.3,3836.6,0.2625]
[1760149948849,0.13749391,3839.3,3835.3,0.2625]
[1760149949048,0.13749391,3839.3,3836.9,0.2625]
[1760149949279,0.13749391,3839.3,3834.3,2.60802971]
[1760149949280,0.02613481,3839.2,3833.3,2.60869497]
[1760149949449,0.13749391,3839.3,3833.3,1.92]
[1760149949650,0.13749391,3839.3,3835.0,2.60755021]
[1760149949850,0.13749391,3839.3,3835.7,0.6336]
[1760149950087,0.13749391,3839.3,3837.4,0.2625]
[1760149950254,0.13749391,3839.3,3837.5,0.92148611]
[1760149950959,0.13749391,3839.3,3837.5,0.8961]
[1760149951487,0.13749391,3839.3,3837.7,0.8961]
[1760149952571,0.13749391,3839.3,3835.2,0.2625]
[1760149952777,0.13749391,3839.3,3835.4,0.2625]
[1760149953649,0.02613481,3839.2,3835.4,0.2625]
[1760149953854,0.02613481,3839.2,3835.5,0.2625]
[1760149954061,0.13749391,3839.3,3835.5,0.2625]
[1760149954255,0.02613481,3839.2,3835.5,0.2625]
[1760149954698,0.13749391,3839.3,3835.5,0.2625]
[1760149954877,0.13749391,3839.3,3835.7,0.6336]
[1760149955189,0.13749391,3839.3,3836.6,0.2625]